fUSD/lending_fUSD_20260621
["ID","MTS","AMOUNT","RATE_DAILY","PERIOD"]
[425900862,1782031857000,-500.0,0.00027671,2]
[425900852,1782031857000,-500.0,0.00027671,2]
[425900848,1782031857000,-500.0,0.00027671,2]
[425900850,1782031857000,-500.0,0.00027671,2]
[425900847,1782031857000,-500.0,0.00027671,2]
[425900855,1782031857000,-500.0,0.00027671,2]
[425900845,1782031857000,-500.0,0.00027671,2]
[425900851,1782031857000,-500.0,0.00027671,2]
[425900861,1782031857000,-201.22038483,0.00027671,2]
[425900856,1782031857000,-500.0,0.00027671,2]
[425900876,1782031857000,-500.0,0.00027671,2]
[425900886,1782031857000,-500.0,0.00027671,2]
[425900875,1782031857000,-500.0,0.00027671,2]
[425900903,1782031857000,-500.0,0.00027671,2]
[425900900,1782031857000,-500.0,0.00027671,2]
[425900902,1782031857000,-500.0,0.00027671,2]
[425900905,1782031857000,-500.0,0.00027671,2]
[425900908,1782031857000,-500.0,0.00027671,2]
[425900904,1782031857000,-500.0,0.00027671,2]
[425900906,1782031857000,-500.0,0.00027671,2]
[425900907,1782031857000,-500.0,0.00027671,2]
[425900909,1782031857000,-593.92,0.00027671,2]
[425900911,1782031857000,-500.0,0.00027671,2]
[425900914,1782031857000,-500.0,0.00027671,2]
[425900910,1782031857000,-500.0,0.00027671,2]
[425900913,1782031857000,-500.0,0.00027671,2]
[425900912,1782031857000,-757.97,0.00027671,2]
[425900873,1782031857000,-602.98,0.00027671,2]
[425900899,1782031857000,-500.0,0.00027671,2]
[425900901,1782031857000,-500.0,0.00027671,2]
[425900915,1782031857000,-1184.55620513,0.00027671,2]
[425900894,1782031857000,-500.0,0.00027671,2]
[425900877,1782031857000,-738.11,0.00027671,2]
[425900897,1782031857000,-500.0,0.00027671,2]
[425900882,1782031857000,-1432.58,0.00027671,2]
[425900883,1782031857000,-500.0,0.00027671,2]
[425900881,1782031857000,-500.0,0.00027671,2]
[425900884,1782031857000,-500.0,0.00027671,2]
[425900885,1782031857000,-500.0,0.00027671,2]
[425900892,1782031857000,-500.0,0.00027671,2]
[425900888,1782031857000,-724.85,0.00027671,2]
[425900887,1782031857000,-1143.63,0.00027671,2]
[425900891,1782031857000,-500.0,0.00027671,2]
[425900889,1782031857000,-500.0,0.00027671,2]
[425900893,1782031857000,-500.0,0.00027671,2]
[425900898,1782031857000,-500.0,0.00027671,2]
[425900896,1782031857000,-600.56388892,0.00027671,2]
[425900895,1782031857000,-500.0,0.00027671,2]
[425900890,1782031857000,-506.46,0.00027671,2]
[425900937,1782031858000,-507.46,0.00027397,2]
[425900947,1782031858000,-500.0,0.00027671,2]
[425900938,1782031858000,-84.81142144,0.00027671,2]
[425900939,1782031858000,-500.0,0.00027671,2]
[425900940,1782031858000,-164.65908786,0.00027671,2]
[425900944,1782031858000,-500.0,0.00027671,2]
[425900941,1782031858000,-2295.05091214,0.00027671,2]
[425900943,1782031858000,-500.0,0.00027671,2]
[425900953,1782031858000,-500.0,0.00027671,2]
[425900946,1782031858000,-500.0,0.00027671,2]
[425900942,1782031858000,-757.08,0.00027671,2]
[425900948,1782031858000,-500.0,0.00027671,2]
[425900950,1782031858000,-500.0,0.00027671,2]
[425900951,1782031858000,-500.0,0.00027671,2]
[425900949,1782031858000,-500.0,0.00027671,2]
[425900936,1782031858000,-83.08098129,0.00027397,2]
[425900945,1782031858000,-500.0,0.00027671,2]
[425900935,1782031858000,-106.02181238,0.00027397,2]
[425900916,1782031858000,-108.42379487,0.00027671,2]
[425900932,1782031858000,-500.0,0.00027671,2]
[425900954,1782031858000,-500.0,0.00027671,2]
[425900919,1782031858000,-500.0,0.00027671,2]
[425900917,1782031858000,-500.0,0.00027671,2]
[425900921,1782031858000,-500.0,0.00027671,2]
[425900922,1782031858000,-1489.57,0.00027671,2]
[425900918,1782031858000,-663.15,0.00027671,2]
[425900920,1782031858000,-629.75760725,0.00027671,2]
[425900923,1782031858000,-500.0,0.00027671,2]
[425900924,1782031858000,-512.29,0.00027671,2]
[425900925,1782031858000,-500.0,0.00027671,2]
[425900931,1782031858000,-500.0,0.00027671,2]
[425900927,1782031858000,-134.95085956,0.00027671,2]
[425900926,1782031858000,-365.04914044,0.00027671,2]
[425900930,1782031858000,-500.0,0.00027671,2]
[425900928,1782031858000,-852.77,0.00027671,2]
[425900929,1782031858000,-500.0,0.00027671,2]
[425900933,1782031858000,-376.46215687,0.00027671,2]
[425900934,1782031858000,-898.00642169,0.00027671,2]
[425900952,1782031858000,-500.0,0.00027671,2]
[425900968,1782031858000,-713.88,0.00027671,2]
[425900963,1782031858000,-396.19515018,0.00027671,2]
[425900981,1782031858000,-617.09,0.00027671,2]
[425900989,1782031858000,-500.0,0.00027671,2]
[425900988,1782031858000,-500.0,0.00027671,2]
[425900980,1782031858000,-600.81,0.00027671,2]
[425900983,1782031858000,-500.0,0.00027671,2]
[425900986,1782031858000,-500.0,0.00027671,2]
[425900978,1782031858000,-500.0,0.00027671,2]
[425900982,1782031858000,-500.0,0.00027671,2]
[425900987,1782031858000,-500.0,0.00027671,2]
[425900979,1782031858000,-521.68455584,0.00027671,2]
[425900985,1782031858000,-500.0,0.00027671,2]
[425900984,1782031858000,-500.0,0.00027671,2]
[425900990,1782031858000,-500.0,0.00027671,2]
[425900995,1782031858000,-635.21,0.00027671,2]
[425900991,1782031858000,-500.0,0.00027671,2]
[425900993,1782031858000,-500.0,0.00027671,2]
[425900955,1782031858000,-482.83914157,0.00027671,2]
[425900977,1782031858000,-500.0,0.00027671,2]
[425900972,1782031858000,-500.0,0.00027671,2]
[425900992,1782031858000,-500.0,0.00027671,2]
[425900969,1782031858000,-500.0,0.00027671,2]
[425900974,1782031858000,-500.0,0.00027671,2]
[425900956,1782031858000,-500.0,0.00027671,2]
[425900959,1782031858000,-909.64,0.00027671,2]
[425900958,1782031858000,-978.71,0.00027671,2]
[425900961,1782031858000,-500.0,0.00027671,2]
[425900960,1782031858000,-850.16,0.00027671,2]
[425900962,1782031858000,-500.0,0.00027671,2]
[425900973,1782031858000,-500.0,0.00027671,2]
[425900957,1782031858000,-500.0,0.00027671,2]
[425900994,1782031858000,-500.0,0.00027671,2]
[425900970,1782031858000,-500.0,0.00027671,2]
[425900967,1782031858000,-371.44470405,0.00027671,2]
[425900975,1782031858000,-588.05,0.00027671,2]
[425900976,1782031858000,-500.0,0.00027671,2]
[425900964,1782031858000,-500.0,0.00027671,2]
[425900965,1782031858000,-643.74,0.00027671,2]
[425900966,1782031858000,-500.0,0.00027671,2]
[425900971,1782031858000,-500.0,0.00027671,2]
[425901015,1782031859000,-500.0,0.00027671,2]
[425901023,1782031859000,-500.0,0.00027671,2]
[425901014,1782031859000,-500.0,0.00027671,2]
[425901018,1782031859000,-617.03,0.00027671,2]
[425901017,1782031859000,-500.0,0.00027671,2]
[425901019,1782031859000,-500.0,0.00027671,2]
[425901024,1782031859000,-555.55,0.00027671,2]
[425901016,1782031859000,-1349.48,0.00027671,2]
[425901022,1782031859000,-500.0,0.00027671,2]
[425901020,1782031859000,-500.0,0.00027671,2]
[425901021,1782031859000,-560.16,0.00027671,2]
[425901026,1782031859000,-500.0,0.00027671,2]
[425901013,1782031859000,-500.0,0.00027671,2]
[425901008,1782031859000,-500.0,0.00027671,2]
[425901007,1782031859000,-500.0,0.00027671,2]
[425901011,1782031859000,-500.0,0.00027671,2]
[425901010,1782031859000,-500.0,0.00027671,2]
[425901003,1782031859000,-500.0,0.00027671,2]
[425901006,1782031859000,-500.0,0.00027671,2]
[425901004,1782031859000,-624.0,0.00027671,2]
[425901012,1782031859000,-502.31,0.00027671,2]
[425901009,1782031859000,-500.0,0.00027671,2]
[425901005,1782031859000,-500.0,0.00027671,2]
[425900996,1782031859000,-500.0,0.00027671,2]
[425901000,1782031859000,-4273.4,0.00027671,2]
[425901001,1782031859000,-500.0,0.00027671,2]
[425900997,1782031859000,-1046.72,0.00027671,2]
[425900999,1782031859000,-500.0,0.00027671,2]
[425901025,1782031859000,-500.0,0.00027671,2]
[425901002,1782031859000,-500.0,0.00027671,2]
[425901027,1782031859000,-500.0,0.00027671,2]
[425900998,1782031859000,-519.34,0.00027671,2]
[425901034,1782031859000,-500.0,0.00027671,2]
[425901032,1782031859000,-579.61,0.00027671,2]
[425901060,1782031859000,-306.91280982,0.00027671,2]
[425901059,1782031859000,-327.36719018,0.00027671,2]
[425901054,1782031859000,-297.66979908,0.00027671,2]
[425901056,1782031859000,-500.0,0.00027671,2]
[425901057,1782031859000,-500.0,0.00027671,2]
[425901055,1782031859000,-500.0,0.00027671,2]
[425901053,1782031859000,-500.0,0.00027671,2]
[425901051,1782031859000,-2076.3,0.00027671,2]
[425901050,1782031859000,-500.0,0.00027671,2]
[425901052,1782031859000,-500.0,0.00027671,2]
[425901048,1782031859000,-500.0,0.00027671,2]
[425901049,1782031859000,-500.0,0.00027671,2]
[425901045,1782031859000,-609.54140635,0.00027671,2]
[425901039,1782031859000,-500.0,0.00027671,2]
[425901058,1782031859000,-172.63280982,0.00027671,2]
[425901043,1782031859000,-500.0,0.00027671,2]
[425901028,1782031859000,-622.77,0.00027671,2]
[425901037,1782031859000,-500.0,0.00027671,2]
[425901030,1782031859000,-500.0,0.00027671,2]
[425901035,1782031859000,-500.0,0.00027671,2]
[425901033,1782031859000,-500.0,0.00027671,2]
[425901029,1782031859000,-500.0,0.00027671,2]
[425901042,1782031859000,-603.34240209,0.00027671,2]
[425901031,1782031859000,-3861.5,0.00027671,2]
[425901036,1782031859000,-1010.74,0.00027671,2]
[425901038,1782031859000,-500.0,0.00027671,2]
[425901041,1782031859000,-500.0,0.00027671,2]
[425901047,1782031859000,-500.0,0.00027671,2]
[425901040,1782031859000,-500.0,0.00027671,2]
[425901044,1782031859000,-954.77,0.00027671,2]
[425901046,1782031859000,-500.0,0.00027671,2]
[425901068,1782031860000,-500.0,0.00027397,2]
[425901074,1782031860000,-500.0,0.00027671,2]
[425901079,1782031860000,-561.7,0.00027671,2]
[425901089,1782031860000,-500.0,0.00027671,2]
[425901090,1782031860000,-500.0,0.00027671,2]
[425901083,1782031860000,-3739.38,0.00027671,2]
[425901067,1782031860000,-954.74,0.00027397,2]
[425901086,1782031860000,-500.0,0.00027671,2]
[425901078,1782031860000,-536.39360677,0.00027671,2]
[425901069,1782031860000,-500.0,0.00027397,2]
[425901071,1782031860000,-500.0,0.00027397,2]
[425901070,1782031860000,-500.0,0.00027397,2]
[425901076,1782031860000,-500.0,0.00027671,2]
[425901073,1782031860000,-2426.59,0.00027671,2]
[425901065,1782031860000,-500.0,0.00027397,2]
[425901066,1782031860000,-608.00263635,0.00027397,2]
[425901072,1782031860000,-193.08719018,0.00027671,2]
[425901061,1782031860000,-970.14726879,0.0002021,2]
[425901063,1782031860000,-624.14726879,0.00022672,2]
[425901064,1782031860000,-934.0,0.00025672,2]
[425901062,1782031860000,-309.85273121,0.00022672,2]
[425901085,1782031860000,-500.0,0.00027671,2]
[425901077,1782031860000,-500.0,0.00027671,2]
[425901082,1782031860000,-500.0,0.00027671,2]
[425901075,1782031860000,-500.0,0.00027671,2]
[425901088,1782031860000,-500.0,0.00027671,2]
[425901080,1782031860000,-500.0,0.00027671,2]
[425901107,1782031860000,-500.0,0.00027671,2]
[425901104,1782031860000,-625.78,0.00027671,2]
[425901111,1782031860000,-500.0,0.00027671,2]
[425901110,1782031860000,-500.0,0.00027671,2]
[425901106,1782031860000,-500.0,0.00027671,2]
[425901105,1782031860000,-512.52646206,0.00027671,2]
[425901108,1782031860000,-622.17253193,0.00027671,2]
[425901103,1782031860000,-500.0,0.00027671,2]
[425901100,1782031860000,-500.0,0.00027671,2]
[425901093,1782031860000,-500.0,0.00027671,2]
[425901101,1782031860000,-500.0,0.00027671,2]
[425901109,1782031860000,-500.0,0.00027671,2]
[425901092,1782031860000,-500.0,0.00027671,2]
[425901094,1782031860000,-500.0,0.00027671,2]
[425901098,1782031860000,-500.0,0.00027671,2]
[425901091,1782031860000,-2044.27,0.00027671,2]
[425901099,1782031860000,-495.60117996,0.00027671,2]
[425901095,1782031860000,-635.99,0.00027671,2]
[425901102,1782031860000,-500.0,0.00027671,2]
[425901097,1782031860000,-500.0,0.00027671,2]
[425901084,1782031860000,-500.0,0.00027671,2]
[425901087,1782031860000,-500.0,0.00027671,2]
[425901081,1782031860000,-352.3431888,0.00027671,2]
[425901096,1782031860000,-530.79,0.00027671,2]
[425901147,1782031861000,-500.0,0.00027671,2]
[425901145,1782031861000,-500.0,0.00027671,2]
[425901148,1782031861000,-500.0,0.00027671,2]
[425901140,1782031861000,-219.90765827,0.00027671,2]
[425901144,1782031861000,-338.87407867,0.00027671,2]
[425901141,1782031861000,-500.0,0.00027671,2]
[425901150,1782031861000,-500.0,0.00027671,2]
[425901149,1782031861000,-500.0,0.00027671,2]
[425901142,1782031861000,-500.0,0.00027671,2]
[425901143,1782031861000,-500.0,0.00027671,2]
[425901156,1782031861000,-500.0,0.00027671,2]
[425901151,1782031861000,-500.0,0.00027671,2]
[425901161,1782031861000,-510.48,0.00027671,2]
[425901155,1782031861000,-500.0,0.00027671,2]
[425901157,1782031861000,-500.0,0.00027671,2]
[425901153,1782031861000,-500.0,0.00027671,2]
[425901159,1782031861000,-500.0,0.00027671,2]
[425901160,1782031861000,-500.0,0.00027671,2]
[425901158,1782031861000,-828.79,0.00027671,2]
[425901162,1782031861000,-500.0,0.00027671,2]
[425901152,1782031861000,-1000.24,0.00027671,2]
[425901132,1782031861000,-562.70274818,0.00027671,2]
[425901146,1782031861000,-500.0,0.00027671,2]
[425901137,1782031861000,-500.0,0.00027671,2]
[425901120,1782031861000,-500.0,0.00027671,2]
[425901136,1782031861000,-500.0,0.00027671,2]
[425901113,1782031861000,-500.0,0.00027671,2]
[425901112,1782031861000,-500.0,0.00027671,2]
[425901116,1782031861000,-500.0,0.00027671,2]
[425901114,1782031861000,-500.0,0.00027671,2]
[425901115,1782031861000,-500.0,0.00027671,2]
[425901127,1782031861000,-500.0,0.00027671,2]
[425901126,1782031861000,-746.35,0.00027671,2]
[425901121,1782031861000,-500.0,0.00027671,2]
[425901128,1782031861000,-500.0,0.00027671,2]
[425901118,1782031861000,-500.0,0.00027671,2]
[425901125,1782031861000,-500.0,0.00027671,2]
[425901123,1782031861000,-506.57,0.00027671,2]
[425901124,1782031861000,-728.5,0.00027671,2]
[425901119,1782031861000,-500.0,0.00027671,2]
[425901117,1782031861000,-697.74,0.00027671,2]
[425901122,1782031861000,-500.0,0.00027671,2]
[425901130,1782031861000,-709.07,0.00027671,2]
[425901138,1782031861000,-906.96,0.00027671,2]
[425901131,1782031861000,-500.0,0.00027671,2]
[425901139,1782031861000,-500.0,0.00027671,2]
[425901129,1782031861000,-500.0,0.00027671,2]
[425901135,1782031861000,-620.46,0.00027671,2]
[425901133,1782031861000,-3369.65,0.00027671,2]
[425901134,1782031861000,-1294.1,0.00027671,2]
[425901174,1782031861000,-500.0,0.00027671,2]
[425901154,1782031861000,-1000.0,0.00027671,2]
[425901164,1782031861000,-500.0,0.00027671,2]
[425901198,1782031861000,-500.0,0.00027671,2]
[425901197,1782031861000,-3775.2,0.00027671,2]
[425901200,1782031861000,-500.0,0.00027671,2]
[425901195,1782031861000,-500.0,0.00027671,2]
[425901199,1782031861000,-620.96408921,0.00027671,2]
[425901190,1782031861000,-500.0,0.00027671,2]
[425901191,1782031861000,-500.0,0.00027671,2]
[425901192,1782031861000,-966.66,0.00027671,2]
[425901201,1782031861000,-996.79,0.00027671,2]
[425901202,1782031861000,-500.0,0.00027671,2]
[425901210,1782031861000,-500.0,0.00027671,2]
[425901211,1782031861000,-500.0,0.00027671,2]
[425901207,1782031861000,-500.0,0.00027671,2]
[425901208,1782031861000,-500.0,0.00027671,2]
[425901204,1782031861000,-2567.2,0.00027671,2]
[425901209,1782031861000,-500.0,0.00027671,2]
[425901206,1782031861000,-500.0,0.00027671,2]
[425901212,1782031861000,-500.0,0.00027671,2]
[425901205,1782031861000,-500.0,0.00027671,2]
[425901213,1782031861000,-500.0,0.00027671,2]
[425901214,1782031861000,-500.0,0.00027671,2]
[425901215,1782031861000,-500.0,0.00027671,2]
[425901175,1782031861000,-500.0,0.00027671,2]
[425901196,1782031861000,-500.0,0.00027671,2]
[425901188,1782031861000,-500.0,0.00027671,2]
[425901203,1782031861000,-4905.24,0.00027671,2]
[425901194,1782031861000,-500.0,0.00027671,2]
[425901193,1782031861000,-506.76,0.00027671,2]
[425901167,1782031861000,-500.0,0.00027671,2]
[425901169,1782031861000,-500.0,0.00027671,2]
[425901165,1782031861000,-3436.29,0.00027671,2]
[425901172,1782031861000,-1530.08,0.00027671,2]
[425901163,1782031861000,-588.47,0.00027671,2]
[425901166,1782031861000,-500.0,0.00027671,2]
[425901173,1782031861000,-1484.43,0.00027671,2]
[425901170,1782031861000,-1993.82,0.00027671,2]
[425901168,1782031861000,-527.61,0.00027671,2]
[425901176,1782031861000,-1006.4,0.00027671,2]
[425901179,1782031861000,-5471.52,0.00027671,2]
[425901171,1782031861000,-500.0,0.00027671,2]
[425901178,1782031861000,-500.0,0.00027671,2]
[425901189,1782031861000,-500.0,0.00027671,2]
[425901187,1782031861000,-539.83,0.00027671,2]
[425901184,1782031861000,-528.05,0.00027671,2]
[425901185,1782031861000,-1470.97,0.00027671,2]
[425901182,1782031861000,-763.51,0.00027671,2]
[425901186,1782031861000,-500.0,0.00027671,2]
[425901180,1782031861000,-509.75,0.00027671,2]
[425901183,1782031861000,-500.0,0.00027671,2]
[425901177,1782031861000,-1748.16,0.00027671,2]
[425901181,1782031861000,-500.0,0.00027671,2]
[425901256,1782031862000,-500.0,0.00027671,2]
[425901255,1782031862000,-500.0,0.00027671,2]
[425901254,1782031862000,-500.0,0.00027671,2]
[425901252,1782031862000,-500.0,0.00027671,2]
[425901264,1782031862000,-936.29,0.00027671,2]
[425901263,1782031862000,-500.0,0.00027671,2]
[425901249,1782031862000,-500.0,0.00027671,2]
[425901246,1782031862000,-500.0,0.00027671,2]
[425901251,1782031862000,-500.0,0.00027671,2]
[425901247,1782031862000,-578.89,0.00027671,2]
[425901250,1782031862000,-550.49,0.00027671,2]
[425901253,1782031862000,-500.0,0.00027671,2]
[425901257,1782031862000,-500.0,0.00027671,2]
[425901270,1782031862000,-500.0,0.00027671,2]
[425901260,1782031862000,-500.0,0.00027671,2]
[425901258,1782031862000,-631.74,0.00027671,2]
[425901261,1782031862000,-500.0,0.00027671,2]
[425901262,1782031862000,-500.0,0.00027671,2]
[425901267,1782031862000,-500.0,0.00027671,2]
[425901265,1782031862000,-500.0,0.00027671,2]
[425901268,1782031862000,-822.79,0.00027671,2]
[425901269,1782031862000,-500.0,0.00027671,2]
[425901271,1782031862000,-668.74,0.00027671,2]
[425901266,1782031862000,-500.0,0.00027671,2]
[425901273,1782031862000,-500.0,0.00027671,2]
[425901239,1782031862000,-500.0,0.00027671,2]
[425901259,1782031862000,-500.0,0.00027671,2]
[425901248,1782031862000,-390.31812348,0.00027671,2]
[425901218,1782031862000,-500.0,0.00027671,2]
[425901243,1782031862000,-500.0,0.00027671,2]
[425901222,1782031862000,-773.18,0.00027671,2]
[425901220,1782031862000,-500.0,0.00027671,2]
[425901224,1782031862000,-500.0,0.00027671,2]
[425901216,1782031862000,-511.27,0.00027671,2]
[425901275,1782031862000,-500.0,0.00027671,2]
[425901223,1782031862000,-500.0,0.00027671,2]
[425901217,1782031862000,-500.0,0.00027671,2]
[425901221,1782031862000,-500.0,0.00027671,2]
[425901219,1782031862000,-500.0,0.00027671,2]
[425901237,1782031862000,-500.0,0.00027671,2]
[425901227,1782031862000,-736.64,0.00027671,2]
[425901236,1782031862000,-500.0,0.00027671,2]
[425901226,1782031862000,-500.0,0.00027671,2]
[425901225,1782031862000,-500.0,0.00027671,2]
[425901231,1782031862000,-500.0,0.00027671,2]
[425901235,1782031862000,-500.0,0.00027671,2]
[425901234,1782031862000,-500.0,0.00027671,2]
[425901232,1782031862000,-500.0,0.00027671,2]
[425901228,1782031862000,-749.57,0.00027671,2]
[425901229,1782031862000,-4775.5,0.00027671,2]
[425901233,1782031862000,-500.0,0.00027671,2]
[425901230,1782031862000,-533.07,0.00027671,2]
[425901242,1782031862000,-500.0,0.00027671,2]
[425901241,1782031862000,-535.48,0.00027671,2]
[425901238,1782031862000,-500.0,0.00027671,2]
[425901240,1782031862000,-500.0,0.00027671,2]
[425901244,1782031862000,-500.0,0.00027671,2]
[425901245,1782031862000,-500.0,0.00027671,2]
[425901274,1782031862000,-539.24,0.00027671,2]
[425901272,1782031862000,-500.0,0.00027671,2]
[425901280,1782031862000,-711.11,0.00027671,2]
[425901309,1782031862000,-2747.69,0.00027671,2]
[425901303,1782031862000,-522.43,0.00027671,2]
[425901319,1782031862000,-500.0,0.00027671,2]
[425901312,1782031862000,-1126.45,0.00027671,2]
[425901311,1782031862000,-500.0,0.00027671,2]
[425901317,1782031862000,-500.0,0.00027671,2]
[425901315,1782031862000,-1728.06,0.00027671,2]
[425901321,1782031862000,-561.2,0.00027671,2]
[425901314,1782031862000,-500.0,0.00027671,2]
[425901320,1782031862000,-500.0,0.00027671,2]
[425901318,1782031862000,-1288.46,0.00027671,2]
[425901316,1782031862000,-543.17,0.00027671,2]
[425901313,1782031862000,-500.0,0.00027671,2]
[425901325,1782031862000,-500.0,0.00027671,2]
[425901330,1782031862000,-582.33319464,0.00027671,2]
[425901323,1782031862000,-500.0,0.00027671,2]
[425901332,1782031862000,-500.0,0.00027671,2]
[425901326,1782031862000,-500.0,0.00027671,2]
[425901329,1782031862000,-506.59,0.00027671,2]
[425901324,1782031862000,-500.0,0.00027671,2]
[425901322,1782031862000,-500.0,0.00027671,2]
[425901328,1782031862000,-500.0,0.00027671,2]
[425901327,1782031862000,-500.0,0.00027671,2]
[425901331,1782031862000,-500.0,0.00027671,2]
[425901333,1782031862000,-500.0,0.00027671,2]
[425901334,1782031862000,-500.0,0.00027671,2]
[425901276,1782031862000,-500.0,0.00027671,2]
[425901307,1782031862000,-500.0,0.00027671,2]
[425901304,1782031862000,-500.0,0.00027671,2]
[425901335,1782031862000,-500.0,0.00027671,2]
[425901308,1782031862000,-1590.51,0.00027671,2]
[425901302,1782031862000,-590.68,0.00027671,2]
[425901278,1782031862000,-979.51,0.00027671,2]
[425901277,1782031862000,-500.0,0.00027671,2]
[425901286,1782031862000,-904.39,0.00027671,2]
[425901283,1782031862000,-500.0,0.00027671,2]
[425901282,1782031862000,-500.0,0.00027671,2]
[425901284,1782031862000,-1005.54,0.00027671,2]
[425901281,1782031862000,-163.87219011,0.00027671,2]
[425901285,1782031862000,-500.0,0.00027671,2]
[425901288,1782031862000,-500.0,0.00027671,2]
[425901298,1782031862000,-607.31,0.00027671,2]
[425901289,1782031862000,-500.0,0.00027671,2]
[425901287,1782031862000,-500.0,0.00027671,2]
[425901279,1782031862000,-596.5,0.00027671,2]
[425901297,1782031862000,-500.0,0.00027671,2]
[425901310,1782031862000,-500.0,0.00027671,2]
[425901301,1782031862000,-687.18,0.00027671,2]
[425901305,1782031862000,-788.49,0.00027671,2]
[425901299,1782031862000,-500.0,0.00027671,2]
[425901292,1782031862000,-500.0,0.00027671,2]
[425901306,1782031862000,-500.0,0.00027671,2]
[425901300,1782031862000,-500.0,0.00027671,2]
[425901293,1782031862000,-1974.84,0.00027671,2]
[425901295,1782031862000,-521.92827234,0.00027671,2]
[425901296,1782031862000,-500.0,0.00027671,2]
[425901291,1782031862000,-747.82,0.00027671,2]
[425901290,1782031862000,-533.71793331,0.00027671,2]
[425901294,1782031862000,-500.0,0.00027671,2]
[425901373,1782031863000,-174.71,0.00027856,30]
[425901375,1782031863000,-174.71,0.00027902,30]
[425901376,1782031863000,-160.29,0.00027915,30]
[425901371,1782031863000,-500.0,0.00027671,2]
[425901374,1782031863000,-174.71,0.00027893,30]
[425901372,1782031863000,-383.15595735,0.00027795,2]
[425901367,1782031863000,-507.46,0.00027671,2]
[425901366,1782031863000,-500.0,0.00027671,2]
[425901369,1782031863000,-954.74,0.00027671,2]
[425901368,1782031863000,-500.0,0.00027671,2]
[425901370,1782031863000,-500.0,0.00027671,2]
[425901380,1782031863000,-500.0,0.00027944,2]
[425901381,1782031863000,-500.0,0.00027944,2]
[425901378,1782031863000,-161.39,0.00027924,30]
[425901387,1782031863000,-500.0,0.00027945,2]
[425901384,1782031863000,-500.0,0.00027944,2]
[425901390,1782031863000,-500.0,0.00027945,2]
[425901389,1782031863000,-500.0,0.00027945,2]
[425901388,1782031863000,-500.0,0.00027945,2]
[425901382,1782031863000,-500.0,0.00027944,2]
[425901386,1782031863000,-161.00287,0.00027945,2]
[425901379,1782031863000,-500.0,0.00027944,2]
[425901385,1782031863000,-40687.380737,0.00027945,2]
[425901392,1782031863000,-500.0,0.00027945,2]
[425901377,1782031863000,-200.0,0.00027923,2]
[425901383,1782031863000,-500.0,0.00027944,2]
[425901357,1782031863000,-500.0,0.00027671,2]
[425901344,1782031863000,-519.27421148,0.00027671,2]
[425901356,1782031863000,-500.0,0.00027671,2]
[425901342,1782031863000,-500.0,0.00027671,2]
[425901336,1782031863000,-680.72,0.00027671,2]